[Event "EIRCC 2019"]
[Site "Tallinn"]
[Date "2019.12.06"]
[Round "8.33"]
[White "Potapov, Alexander"]
[Black "Vetokhin, Savva"]
[Result "1-0"]
[ECO "E71"]
[WhiteElo "2359"]
[BlackElo "1993"]
[Annotator "NA"]
[PlyCount "121"]
[EventDate "2019.12.05"]
[EventType "swiss"]
[EventCountry "EST"]
[SourceTitle "playchess.com"]
[Source "ChessBase"]
[SourceQuality "1"]
[TimeControl "900+10"]

1. d4 {[%emt 0:00:00]} Nf6 {[%emt 0:00:00]} 2. c4 {[%emt 0:00:00]} g6 {[%emt 0:00:00]} 3. Nc3 {[%emt 0:00:00]} Bg7 {[%emt 0:00:00]} 4. e4 {[%emt 0:00:00]} d6 {[%emt 0:00:00]} 5. h3 {[%emt 0:00:00]} O-O {[%emt 0:00:02]} 6. Bg5 {[%emt 0:00:01]} c5 {[%emt 0:00:08]} 7. d5 {[%emt 0:00:02]} e6 {[%emt 0:00:05]} 8. Bd3 {[%emt 0:00:03]} exd5 {[%emt 0:00:02]} 9. exd5 {[%emt 0:00:02]} Re8+ {[%emt 0:00:06]} 10. Nge2 {[%emt 0:00:05]} Nbd7 {[%emt 0:00:07]} 11. f4 {[%emt 0:00:01]} Qe7 {[%emt 0:01:04]} 12. O-O {[%emt 0:00:14]} Qf8 {[%emt 0:01:01]} 13. Qc2 {[%emt 0:00:10]} b6 {[%emt 0:00:11]} 14. a4 {[%emt 0:00:34]} Ba6 {[%emt 0:00:20]} 15. Ng3 {[%emt 0:02:58]} h6 {[%emt 0:00:40]} 16. Bh4 {[%emt 0:00:05]} Nh7 {[%emt 0:01:00]} 17. Nge4 {[%emt 0:01:17]} Nhf6 {[%emt 0:00:54]} 18. Nxf6+ {[%emt 0:00:45]} Nxf6 {[%emt 0:00:07]} 19. Nb5 {[%emt 0:00:08]} Qe7 {[%emt 0:00:59]} 20. Rae1 {[%emt 0:03:13]} Qd7 {[%emt 0:00:02]} 21. Kh2 {[%emt 0:00:39]} Rxe1 {[%emt 0:00:35]} 22. Rxe1 {[%emt 0:00:25]} Re8 {[%emt 0:00:15]} 23. Rxe8+ {[%emt 0:00:30]} Nxe8 {[%emt 0:00:01]} 24. g4 {[%emt 0:00:02]} Nf6 {[%emt 0:00:19]} 25. Qe2 {[%emt 0:00:06]} Bxb5 {[%emt 0:00:29]} 26. axb5 {[%emt 0:00:02]} Qe8 {[%emt 0:00:03]} 27. Qxe8+ {[%emt 0:00:24]} Nxe8 {[%emt 0:00:01]} 28. b3 {[%emt 0:00:01]} Bf6 {[%emt 0:00:15]} 29. Be1 {[%emt 0:00:03]} Bd4 {[%emt 0:00:09]} 30. Kg2 {[%emt 0:00:02]} Nc7 {[%emt 0:00:03]} 31. Kf3 {[%emt 0:00:09]} a6 {[%emt 0:00:23]} 32. bxa6 {[%emt 0:00:02]} Nxa6 {[%emt 0:00:01]} 33. Bg3 {[%emt 0:00:05]} Bf6 {[%emt 0:03:21]} 34. f5 {[%emt 0:00:13]} gxf5 {[%emt 0:00:02]} 35. Bxd6 {[%emt 0:00:04]} fxg4+ {[%emt 0:00:02]} 36. Kxg4 {[%emt 0:00:13]} Bd8 {[%emt 0:00:08]} 37. Bf5 {[%emt 0:00:14]} Kg7 {[%emt 0:00:28]} 38. Be5+ {[%emt 0:00:11]} Bf6 39. Bf4 {[%emt 0:00:03]} Nb4 {[%emt 0:00:37]} 40. Kh5 {[%emt 0:00:06]} Na6 {[%emt 0:00:51]} 41. Bxh6+ {[%emt 0:00:03]} Kg8 {[%emt 0:00:01]} 42. Bf4 {[%emt 0:00:07]} Bd8 {[%emt 0:00:07]} 43. Kg4 {[%emt 0:00:41]} Nc7 {[%emt 0:00:05]} 44. Bd7 {[%emt 0:00:02]} Kf8 {[%emt 0:00:07]} 45. Bd6+ {[%emt 0:00:08]} Kg7 {[%emt 0:00:00]} 46. h4 {[%emt 0:00:03]} Na6 {[%emt 0:00:28]} 47. h5 {[%emt 0:00:05]} Bc7 {[%emt 0:00:06]} 48. Be7 {[%emt 0:00:10]} Nb8 {[%emt 0:00:03]} 49. Bf5 {[%emt 0:00:04]} Be5 {[%emt 0:00:04]} 50. Kg5 {[%emt 0:00:11]} f6+ {[%emt 0:00:02]} 51. Kg4 {[%emt 0:00:01]} Kf7 {[%emt 0:00:05]} 52. Bd8 {[%emt 0:00:03]} Bd6 {[%emt 0:00:04]} 53. Bxb6 {[%emt 0:00:05]} Kg7 {[%emt 0:00:03]} 54. Bd8 {[%emt 0:00:07]} Na6 {[%emt 0:00:04]} 55. Be4 {[%emt 0:00:15]} Nc7 {[%emt 0:00:03]} 56. Bg6 {[%emt 0:00:07]} Kh6 {[%emt 0:00:04]} 57. Kf5 {[%emt 0:00:03]} Kg7 {[%emt 0:00:04]} 58. Bxc7 {[%emt 0:00:16]} Bxc7 {[%emt 0:00:03]} 59. Ke6 {[%emt 0:00:01]} Be5 {[%emt 0:00:04]} 60. d6 {[%emt 0:00:01]} Kf8 {[%emt 0:00:01]} 61. h6 {[%emt 0:00:02]} 1-0

[Event "EIRCC 2019"]
[Site "Tallinn"]
[Date "2019.12.06"]
[Round "8.34"]
[White "Silich, Yahor"]
[Black "Putka, Verners"]
[Result "1/2-1/2"]
[ECO "C42"]
[WhiteElo "1975"]
[BlackElo "2358"]
[Annotator "NA"]
[PlyCount "88"]
[EventDate "2019.12.05"]
[EventType "swiss"]
[EventCountry "EST"]
[SourceTitle "playchess.com"]
[Source "ChessBase"]
[SourceQuality "1"]
[TimeControl "900+10"]

1. e4 {[%emt 0:00:00]} e5 {[%emt 0:00:00]} 2. Nf3 {[%emt 0:00:00]} Nf6 {[%emt 0:00:00]} 3. Nxe5 {[%emt 0:00:00]} d6 {[%emt 0:00:00]} 4. Nf3 {[%emt 0:00:00]} Nxe4 {[%emt 0:00:00]} 5. d3 {[%emt 0:00:00]} Nf6 {[%emt 0:00:02]} 6. d4 {[%emt 0:00:00]} Be7 {[%emt 0:00:03]} 7. Bd3 {[%emt 0:00:49]} Bg4 {[%emt 0:00:11]} 8. h3 {[%emt 0:00:08]} Bh5 {[%emt 0:00:02]} 9. O-O {[%emt 0:00:07]} O-O {[%emt 0:00:04]} 10. b3 {[%emt 0:01:17]} c5 {[%emt 0:01:52]} 11. d5 {[%emt 0:03:25]} Nbd7 {[%emt 0:01:34]} 12. Be2 {[%emt 0:00:28]} Re8 {[%emt 0:00:30]} 13. Bb2 {[%emt 0:00:36]} Ne4 {[%emt 0:01:39]} 14. Nbd2 {[%emt 0:02:29]} Bf6 {[%emt 0:00:28]} 15. Bxf6 {[%emt 0:02:52]} Qxf6 {[%emt 0:00:28]} 16. Nxe4 {[%emt 0:00:42]} Rxe4 {[%emt 0:00:03]} 17. Qd2 {[%emt 0:01:41]} Rxe2 {[%emt 0:01:11]} 18. Qxe2 {[%emt 0:00:05]} Ne5 {[%emt 0:00:01]} 19. Qe3 {[%emt 0:00:59]} Nxf3+ {[%emt 0:02:38]} 20. gxf3 {[%emt 0:00:02]} Bxf3 {[%emt 0:00:02]} 21. Kh2 {[%emt 0:00:04]} Bxd5 {[%emt 0:00:02]} 22. Rae1 {[%emt 0:00:34]} Bc6 {[%emt 0:00:40]} 23. c4 {[%emt 0:00:43]} h6 {[%emt 0:01:06]} 24. Qg3 {[%emt 0:00:07]} Rd8 {[%emt 0:02:43]} 25. Rd1 {[%emt 0:00:14]} d5 {[%emt 0:00:21]} 26. cxd5 {[%emt 0:00:02]} Rxd5 {[%emt 0:00:18]} 27. Rxd5 {[%emt 0:00:04]} Bxd5 {[%emt 0:00:01]} 28. Rd1 {[%emt 0:01:16]} Bc6 {[%emt 0:00:23]} 29. Qe3 {[%emt 0:00:15]} Qf5 {[%emt 0:00:49]} 30. Rd8+ {[%emt 0:00:42]} Kh7 {[%emt 0:00:02]} 31. Rd2 {[%emt 0:00:03]} g6 {[%emt 0:00:15]} 32. f3 {[%emt 0:00:13]} Bd7 {[%emt 0:01:09]} 33. f4 {[%emt 0:00:01]} Bc6 {[%emt 0:00:01]} 34. Re2 {[%emt 0:00:25]} Qb1 {[%emt 0:00:13]} 35. Qg1 {[%emt 0:00:01]} Qd3 {[%emt 0:00:08]} 36. Qe3 {[%emt 0:00:06]} Qd1 {[%emt 0:00:03]} 37. Re1 {[%emt 0:00:01]} Qd5 {[%emt 0:00:03]} 38. Qf2 {[%emt 0:00:03]} a6 {[%emt 0:01:03]} 39. Re5 {[%emt 0:00:01]} Qh1+ {[%emt 0:00:02]} 40. Kg3 {[%emt 0:00:01]} Bd7 {[%emt 0:00:54]} 41. Qg2 {[%emt 0:00:03]} Qd1 {[%emt 0:00:28]} 42. Qd5 {[%emt 0:00:41]} Qg1+ {[%emt 0:00:04]} 43. Qg2 {[%emt 0:00:01]} Qd1 {[%emt 0:00:16]} 44. Qd5 {[%emt 0:00:10]} Qg1+ {[%emt 0:00:12]} 1/2-1/2

[Event "EIRCC 2019"]
[Site "Tallinn"]
[Date "2019.12.06"]
[Round "8.35"]
[White "Sanal, Vahap"]
[Black "Chernyak, Viktoria"]
[Result "1-0"]
[ECO "B23"]
[WhiteElo "2597"]
[BlackElo "2233"]
[Annotator "ChessBase"]
[PlyCount "73"]
[EventDate "2019.12.05"]
[EventType "swiss"]
[EventCountry "EST"]
[SourceTitle "playchess.com"]
[Source "ChessBase"]
[SourceQuality "1"]
[TimeControl "900+10"]

1. e4 {[%emt 0:02:30]} c5 {[%emt 0:00:06]} 2. Nc3 {[%emt 0:00:02]} g6 {[%emt 0:00:04]} 3. h4 {[%emt 0:00:02]} h5 {[%emt 0:00:44]} 4. d4 {[%emt 0:00:02]} cxd4 {[%emt 0:00:21]} 5. Qxd4 {[%emt 0:00:02]} Nf6 {[%emt 0:00:05]} 6. Bg5 {[%emt 0:00:06]} Nc6 {[%emt 0:00:13]} 7. Qd2 {[%emt 0:00:02]} Bg7 {[%emt 0:00:19]} 8. f3 {[%emt 0:00:05]} d6 {[%emt 0:00:28]} 9. Bc4 {[%emt 0:00:05]} a6 {[%emt 0:01:33]} 10. Bb3 {[%emt 0:00:05]} Bd7 {[%emt 0:00:29]} 11. Nge2 {[%emt 0:00:13]} Rc8 {[%emt 0:00:07]} 12. O-O-O {[%emt 0:00:27]} b5 {[%emt 0:00:18]} 13. Kb1 {[%emt 0:00:11]} Ne5 {[%emt 0:00:20]} 14. f4 {[%emt 0:01:01]} Nc4 {[%emt 0:00:32]} 15. Bxc4 {[%emt 0:00:04]} bxc4 {[%emt 0:00:56]} 16. e5 {[%emt 0:00:04]} dxe5 {[%emt 0:02:21]} 17. fxe5 {[%emt 0:00:02]} Ng4 {[%emt 0:00:35]} 18. Nd5 {[%emt 0:00:02]} f6 {[%emt 0:01:55]} 19. exf6 {[%emt 0:00:02]} exf6 {[%emt 0:00:07]} 20. Nef4 {[%emt 0:01:40]} O-O {[%emt 0:02:40]} 21. Nxg6 {[%emt 0:00:13]} Rf7 {[%emt 0:00:04]} 22. Bf4 {[%emt 0:00:13]} Kh7 {[%emt 0:00:46]} 23. Nde7 Rxe7 {[%emt 0:00:10]} 24. Nxe7 {[%emt 0:00:03]} Qxe7 {[%emt 0:00:02]} 25. Qxd7 {[%emt 0:00:03]} Qxd7 {[%emt 0:00:41]} 26. Rxd7 {[%emt 0:00:02]} Kg6 {[%emt 0:00:01]} 27. Rc7 {[%emt 0:00:08]} Re8 {[%emt 0:00:03]} 28. Rxc4 {[%emt 0:00:02]} Re2 {[%emt 0:00:02]} 29. g3 {[%emt 0:00:01]} Nf2 {[%emt 0:00:08]} 30. Rc1 {[%emt 0:00:02]} Ne4 {[%emt 0:00:33]} 31. a4 {[%emt 0:00:02]} Kf5 {[%emt 0:00:05]} 32. a5 {[%emt 0:00:01]} Bf8 {[%emt 0:00:02]} 33. Rc6 {[%emt 0:00:03]} Nc5 {[%emt 0:00:11]} 34. Bd6 {[%emt 0:00:11]} Bxd6 {[%emt 0:00:38]} 35. Rxd6 {[%emt 0:00:01]} Kg4 {[%emt 0:00:27]} 36. Rxf6 {[%emt 0:00:04]} Kxg3 {[%emt 0:00:01]} 37. Rf5 {[%emt 0:00:02]} 1-0

[Event "EIRCC 2019"]
[Site "Tallinn"]
[Date "2019.12.06"]
[Round "8.36"]
[White "Sysolyatin, Evgeny"]
[Black "Khalifman, Alexander"]
[Result "1-0"]
[ECO "B70"]
[WhiteElo "2231"]
[BlackElo "2577"]
[Annotator "ChessBase"]
[PlyCount "67"]
[EventDate "2019.12.05"]
[EventType "swiss"]
[EventCountry "EST"]
[SourceTitle "playchess.com"]
[Source "ChessBase"]
[SourceQuality "1"]
[TimeControl "900+10"]

1. e4 {[%emt 0:00:00]} c5 {[%emt 0:00:00]} 2. Nf3 {[%emt 0:00:00]} d6 {[%emt 0:00:00]} 3. d4 {[%emt 0:00:00]} cxd4 {[%emt 0:00:00]} 4. Nxd4 {[%emt 0:00:00]} Nf6 {[%emt 0:00:00]} 5. Nc3 {[%emt 0:00:03]} g6 {[%emt 0:00:00]} 6. g3 {[%emt 0:00:53]} Nc6 {[%emt 0:00:00]} 7. Bg2 {[%emt 0:00:06]} Nxd4 {[%emt 0:00:00]} 8. Qxd4 {[%emt 0:00:04]} Bg7 {[%emt 0:00:00]} 9. O-O {[%emt 0:00:55]} O-O {[%emt 0:00:01]} 10. Re1 {[%emt 0:01:23]} Be6 {[%emt 0:00:17]} 11. Qb4 {[%emt 0:00:10]} Nd7 {[%emt 0:01:16]} 12. Bg5 {[%emt 0:03:13]} a5 {[%emt 0:02:34]} 13. Qb5 {[%emt 0:02:14]} h6 {[%emt 0:02:51]} 14. Be3 {[%emt 0:00:17]} Qc7 {[%emt 0:00:07]} 15. Nd5 {[%emt 0:00:34]} Bxd5 {[%emt 0:00:02]} 16. exd5 {[%emt 0:00:01]} a4 {[%emt 0:00:06]} 17. Rac1 {[%emt 0:01:28]} Ne5 {[%emt 0:00:49]} 18. b3 {[%emt 0:00:51]} axb3 {[%emt 0:01:20]} 19. axb3 {[%emt 0:00:05]} Ra2 {[%emt 0:00:10]} 20. h3 {[%emt 0:02:00]} h5 {[%emt 0:01:51]} 21. Bb6 {[%emt 0:00:25]} Qc3 {[%emt 0:00:26]} 22. Be3 {[%emt 0:01:31]} Rxc2 {[%emt 0:02:10]} 23. Qxb7 {[%emt 0:00:02]} Nd3 {[%emt 0:00:16]} 24. Rxc2 {[%emt 0:00:01]} Qxc2 {[%emt 0:00:02]} 25. Rf1 {[%emt 0:00:11]} Bf6 {[%emt 0:00:05]} 26. b4 {[%emt 0:00:19]} h4 {[%emt 0:00:19]} 27. g4 {[%emt 0:00:28]} Qc4 {[%emt 0:00:27]} 28. b5 {[%emt 0:00:06]} Nf4 {[%emt 0:00:05]} 29. Qc6 {[%emt 0:00:04]} Ne2+ {[%emt 0:00:06]} 30. Kh1 {[%emt 0:00:02]} Qb4 {[%emt 0:00:28]} 31. b6 {[%emt 0:00:04]} Nd4 {[%emt 0:01:49]} 32. Qc7 {[%emt 0:00:27]} Qb3 {[%emt 0:00:21]} 33. b7 {[%emt 0:00:14]} g5 {[%emt 0:00:03]} 34. Be4 {[%emt 0:00:17]} 1-0

[Event "EIRCC 2019"]
[Site "Tallinn"]
[Date "2019.12.06"]
[Round "9.6"]
[White "Potapov, Pavel"]
[Black "Lysyj, Igor"]
[Result "1/2-1/2"]
[ECO "C67"]
[WhiteElo "2482"]
[BlackElo "2599"]
[Annotator "ChessBase"]
[PlyCount "30"]
[EventDate "2019.12.05"]
[EventType "swiss"]
[EventCountry "EST"]
[SourceTitle "playchess.com"]
[Source "ChessBase"]
[SourceQuality "1"]
[TimeControl "900+10"]

1. e4 {[%emt 0:00:00]} e5 {[%emt 0:00:00]} 2. Nf3 {[%emt 0:00:00]} Nc6 {[%emt 0:00:00]} 3. Bb5 {[%emt 0:00:00]} Nf6 {[%emt 0:00:00]} 4. O-O {[%emt 0:00:07]} Nxe4 {[%emt 0:00:00]} 5. d4 {[%emt 0:00:16]} Nd6 {[%emt 0:00:00]} 6. dxe5 {[%emt 0:00:08]} Nxb5 {[%emt 0:00:00]} 7. a4 {[%emt 0:00:01]} Nbd4 {[%emt 0:00:04]} 8. Nxd4 {[%emt 0:00:02]} d6 {[%emt 0:00:01]} 9. exd6 {[%emt 0:00:09]} Bxd6 {[%emt 0:00:09]} 10. Nxc6 {[%emt 0:00:26]} bxc6 {[%emt 0:00:02]} 11. Re1+ {[%emt 0:00:22]} Be6 {[%emt 0:00:04]} 12. Qf3 {[%emt 0:00:27]} O-O {[%emt 0:00:08]} 13. Nc3 {[%emt 0:00:57]} Qh4 {[%emt 0:01:16]} 14. h3 {[%emt 0:01:08]} Rfe8 {[%emt 0:00:52]} 15. Bd2 {[%emt 0:01:50]} Qd4 {[%emt 0:04:27]} 1/2-1/2

[Event "EIRCC 2019"]
[Site "Tallinn"]
[Date "2019.12.06"]
[Round "9.7"]
[White "Lazavik, Denis"]
[Black "Esipenko, Andrey"]
[Result "1/2-1/2"]
[ECO "D58"]
[WhiteElo "2201"]
[BlackElo "2590"]
[Annotator "ChessBase"]
[PlyCount "62"]
[EventDate "2019.12.05"]
[EventType "swiss"]
[EventCountry "EST"]
[SourceTitle "playchess.com"]
[Source "ChessBase"]
[SourceQuality "1"]
[TimeControl "900+10"]

1. d4 {[%emt 0:00:00]} Nf6 {[%emt 0:00:00]} 2. c4 {[%emt 0:00:00]} e6 {[%emt 0:00:00]} 3. Nf3 {[%emt 0:00:05]} d5 {[%emt 0:00:00]} 4. Nc3 {[%emt 0:00:06]} Be7 {[%emt 0:00:00]} 5. Bg5 {[%emt 0:00:12]} O-O {[%emt 0:00:00]} 6. e3 {[%emt 0:00:06]} h6 {[%emt 0:00:00]} 7. Bh4 {[%emt 0:00:08]} b6 {[%emt 0:00:00]} 8. Bd3 {[%emt 0:00:10]} Bb7 {[%emt 0:00:03]} 9. O-O {[%emt 0:00:08]} Nbd7 {[%emt 0:00:15]} 10. Qe2 {[%emt 0:00:07]} c5 {[%emt 0:00:29]} 11. Rfd1 {[%emt 0:00:09]} Ne4 {[%emt 0:00:17]} 12. Bxe7 {[%emt 0:00:15]} Qxe7 {[%emt 0:00:03]} 13. cxd5 {[%emt 0:00:10]} exd5 {[%emt 0:00:10]} 14. a4 {[%emt 0:00:10]} Ndf6 {[%emt 0:01:39]} 15. a5 {[%emt 0:03:05]} cxd4 {[%emt 0:00:16]} 16. Nxd4 {[%emt 0:00:35]} Nxc3 {[%emt 0:01:00]} 17. bxc3 {[%emt 0:00:04]} bxa5 {[%emt 0:00:14]} 18. Rxa5 {[%emt 0:00:21]} Qc7 {[%emt 0:00:02]} 19. Qa2 {[%emt 0:00:53]} Ng4 {[%emt 0:01:10]} 20. g3 {[%emt 0:00:54]} a6 {[%emt 0:04:50]} 21. Bxa6 {[%emt 0:02:53]} Nf6 {[%emt 0:00:49]} 22. Ra1 {[%emt 0:01:47]} Rxa6 {[%emt 0:00:08]} 23. Rxa6 {[%emt 0:00:03]} Bxa6 {[%emt 0:00:01]} 24. Qxa6 {[%emt 0:00:04]} Qxc3 {[%emt 0:00:02]} 25. Qa3 {[%emt 0:00:15]} Qc8 {[%emt 0:00:05]} 26. Kg2 {[%emt 0:00:37]} Qg4 {[%emt 0:00:34]} 27. Qd3 {[%emt 0:00:10]} Rc8 {[%emt 0:00:44]} 28. Qf5 {[%emt 0:00:47]} Qxf5 {[%emt 0:00:32]} 29. Nxf5 {[%emt 0:00:03]} Rc2 {[%emt 0:00:02]} 30. Nd4 {[%emt 0:00:03]} Rb2 {[%emt 0:00:02]} 31. Rc1 {[%emt 0:00:09]} g6 {[%emt 0:00:08]} 1/2-1/2

[Event "EIRCC 2019"]
[Site "Tallinn"]
[Date "2019.12.06"]
[Round "9.8"]
[White "Saric, Ante"]
[Black "Kozak, Adam"]
[Result "1/2-1/2"]
[ECO "A05"]
[WhiteElo "2538"]
[BlackElo "2240"]
[Annotator "ChessBase"]
[PlyCount "29"]
[EventDate "2019.12.05"]
[EventType "swiss"]
[EventCountry "EST"]
[SourceTitle "playchess.com"]
[Source "ChessBase"]
[SourceQuality "1"]
[TimeControl "900+10"]

1. Nf3 {[%emt 0:00:00]} Nf6 {[%emt 0:02:03]} 2. c4 {[%emt 0:00:00]} e6 {[%emt 0:00:04]} 3. g3 {[%emt 0:00:00]} b6 {[%emt 0:00:00]} 4. Bg2 {[%emt 0:00:00]} Bb7 {[%emt 0:00:01]} 5. O-O {[%emt 0:00:05]} Be7 {[%emt 0:00:02]} 6. b3 {[%emt 0:00:01]} O-O {[%emt 0:00:11]} 7. Bb2 {[%emt 0:00:01]} c5 {[%emt 0:00:01]} 8. Nc3 {[%emt 0:00:02]} d5 {[%emt 0:00:06]} 9. Ne5 {[%emt 0:00:02]} Nc6 {[%emt 0:02:03]} 10. Nxc6 {[%emt 0:00:11]} Bxc6 {[%emt 0:00:02]} 11. d4 {[%emt 0:00:06]} Rc8 {[%emt 0:00:30]} 12. dxc5 {[%emt 0:00:18]} dxc4 {[%emt 0:00:10]} 13. Bxc6 {[%emt 0:00:41]} Rxc6 {[%emt 0:00:13]} 14. cxb6 {[%emt 0:00:09]} axb6 {[%emt 0:00:29]} 15. bxc4 {[%emt 0:02:16]} 1/2-1/2

[Event "EIRCC 2019"]
[Site "Tallinn"]
[Date "2019.12.06"]
[Round "9.9"]
[White "Nguyen, Thai Dai Van"]
[Black "Hjartarson, Johann"]
[Result "1-0"]
[ECO "E32"]
[WhiteElo "2364"]
[BlackElo "2534"]
[Annotator "ChessBase"]
[PlyCount "57"]
[EventDate "2019.12.05"]
[EventType "swiss"]
[EventCountry "EST"]
[SourceTitle "playchess.com"]
[Source "ChessBase"]
[SourceQuality "1"]
[TimeControl "900+10"]

1. d4 {[%emt 0:00:00]} Nf6 {[%emt 0:00:00]} 2. c4 {[%emt 0:00:00]} e6 {[%emt 0:00:00]} 3. Nc3 {[%emt 0:00:00]} Bb4 {[%emt 0:00:07]} 4. Qc2 {[%emt 0:00:10]} O-O {[%emt 0:00:18]} 5. e4 {[%emt 0:00:02]} c5 {[%emt 0:00:32]} 6. e5 {[%emt 0:03:48]} Ne8 {[%emt 0:00:18]} 7. a3 {[%emt 0:02:03]} Bxc3+ {[%emt 0:00:06]} 8. bxc3 {[%emt 0:00:01]} Nc6 {[%emt 0:00:19]} 9. Nf3 {[%emt 0:00:04]} d6 {[%emt 0:00:26]} 10. exd6 {[%emt 0:01:36]} Nxd6 {[%emt 0:00:15]} 11. Bd3 {[%emt 0:00:02]} f5 {[%emt 0:00:58]} 12. O-O {[%emt 0:00:27]} b6 {[%emt 0:00:23]} 13. Re1 {[%emt 0:00:08]} Na5 {[%emt 0:03:54]} 14. Bg5 {[%emt 0:01:41]} Qe8 {[%emt 0:02:24]} 15. d5 {[%emt 0:01:42]} Naxc4 {[%emt 0:00:19]} 16. Qe2 {[%emt 0:01:12]} exd5 {[%emt 0:04:06]} 17. Bxc4 {[%emt 0:00:07]} dxc4 {[%emt 0:00:03]} 18. Be7 {[%emt 0:00:01]} Ne4 {[%emt 0:00:14]} 19. Bxf8 {[%emt 0:00:07]} Qxf8 {[%emt 0:00:27]} 20. Nd2 {[%emt 0:01:17]} Bb7 {[%emt 0:01:39]} 21. Nxe4 {[%emt 0:00:11]} fxe4 {[%emt 0:00:19]} 22. Qxc4+ {[%emt 0:00:02]} Kh8 {[%emt 0:00:02]} 23. Rad1 {[%emt 0:01:12]} Qf6 {[%emt 0:00:02]} 24. Qe2 {[%emt 0:02:19]} Qxc3 {[%emt 0:00:24]} 25. Rd7 {[%emt 0:00:02]} Bc6 {[%emt 0:00:22]} 26. Rd6 {[%emt 0:00:00]} Bb5 {[%emt 0:00:23]} 27. Red1 {[%emt 0:00:46]} Bd3 {[%emt 0:00:05]} 28. Qxe4 {[%emt 0:00:07]} c4 {[%emt 0:00:01]} 29. Qxa8# {[%emt 0:00:01]} 1-0

[Event "EIRCC 2019"]
[Site "Tallinn"]
[Date "2019.12.06"]
[Round "9.11"]
[White "Riazantsev, Alexander"]
[Black "Potapov, Alexander"]
[Result "1/2-1/2"]
[ECO "A81"]
[WhiteElo "2594"]
[BlackElo "2359"]
[Annotator "ChessBase"]
[PlyCount "67"]
[EventDate "2019.12.05"]
[EventType "swiss"]
[EventCountry "EST"]
[SourceTitle "playchess.com"]
[Source "ChessBase"]
[SourceQuality "1"]
[TimeControl "900+10"]

1. d4 {[%emt 0:04:16]} f5 {[%emt 0:00:25]} 2. g3 {[%emt 0:00:02]} Nf6 {[%emt 0:00:03]} 3. Bg2 {[%emt 0:00:00]} g6 {[%emt 0:00:02]} 4. Nd2 {[%emt 0:00:02]} Bg7 {[%emt 0:00:07]} 5. e4 {[%emt 0:00:01]} fxe4 {[%emt 0:00:06]} 6. Nxe4 {[%emt 0:00:02]} Nxe4 {[%emt 0:01:03]} 7. Bxe4 {[%emt 0:00:01]} d5 {[%emt 0:00:01]} 8. Bg2 {[%emt 0:00:01]} c5 {[%emt 0:01:50]} 9. dxc5 {[%emt 0:00:29]} d4 {[%emt 0:00:20]} 10. Nf3 {[%emt 0:00:47]} Qa5+ {[%emt 0:00:21]} 11. Bd2 {[%emt 0:01:09]} Qxc5 {[%emt 0:00:03]} 12. O-O {[%emt 0:00:01]} Nc6 {[%emt 0:00:23]} 13. c3 {[%emt 0:01:18]} O-O {[%emt 0:01:14]} 14. Qb3+ {[%emt 0:01:17]} Kh8 {[%emt 0:02:24]} 15. cxd4 {[%emt 0:00:01]} Nxd4 {[%emt 0:00:03]} 16. Nxd4 {[%emt 0:00:01]} Bxd4 {[%emt 0:00:03]} 17. Rac1 {[%emt 0:00:02]} Qb6 {[%emt 0:00:20]} 18. Bc3 {[%emt 0:00:08]} e5 {[%emt 0:00:05]} 19. Bxd4 {[%emt 0:04:28]} exd4 {[%emt 0:00:02]} 20. Rfd1 {[%emt 0:00:26]} Qxb3 {[%emt 0:04:56]} 21. axb3 {[%emt 0:00:01]} Rd8 {[%emt 0:00:01]} 22. Rd2 {[%emt 0:02:43]} Be6 {[%emt 0:00:20]} 23. b4 {[%emt 0:00:21]} Rd7 {[%emt 0:00:03]} 24. f4 {[%emt 0:00:21]} Rad8 {[%emt 0:00:03]} 25. Kf2 {[%emt 0:00:02]} Kg7 {[%emt 0:00:06]} 26. Rc5 {[%emt 0:00:06]} Kf6 {[%emt 0:00:13]} 27. Be4 {[%emt 0:00:06]} b6 {[%emt 0:00:38]} 28. Re5 {[%emt 0:00:01]} Rc7 {[%emt 0:00:31]} 29. Bd3 {[%emt 0:00:46]} Rc1 {[%emt 0:00:38]} 30. Rde2 {[%emt 0:00:19]} Bg4 {[%emt 0:00:13]} 31. Re1 {[%emt 0:00:03]} Rdc8 {[%emt 0:00:51]} 32. Re7 {[%emt 0:00:05]} Rxe1 {[%emt 0:00:16]} 33. Rxe1 {[%emt 0:00:01]} Bf5 {[%emt 0:00:12]} 34. Rd1 {[%emt 0:00:36] Ke5} 1/2-1/2

[Event "EIRCC 2019"]
[Site "Tallinn"]
[Date "2019.12.06"]
[Round "9.13"]
[White "Shubin, Kirill"]
[Black "Belyakov, Bogdan"]
[Result "1/2-1/2"]
[ECO "C67"]
[WhiteElo "2321"]
[BlackElo "2520"]
[Annotator "ChessBase"]
[PlyCount "53"]
[EventDate "2019.12.05"]
[EventType "swiss"]
[EventCountry "EST"]
[SourceTitle "playchess.com"]
[Source "ChessBase"]
[SourceQuality "1"]
[TimeControl "900+10"]

1. e4 {[%emt 0:00:00]} e5 {[%emt 0:00:56]} 2. Nf3 {[%emt 0:00:00]} Nc6 {[%emt 0:00:02]} 3. Bb5 {[%emt 0:00:00]} Nf6 {[%emt 0:00:02]} 4. O-O {[%emt 0:00:00]} Nxe4 {[%emt 0:00:02]} 5. d4 {[%emt 0:00:00]} Nd6 {[%emt 0:00:02]} 6. Bxc6 {[%emt 0:00:00]} dxc6 {[%emt 0:00:02]} 7. dxe5 {[%emt 0:00:01]} Nf5 {[%emt 0:00:01]} 8. Qxd8+ {[%emt 0:00:02]} Kxd8 {[%emt 0:00:01]} 9. Nc3 {[%emt 0:00:01]} Ke8 {[%emt 0:00:02]} 10. h3 {[%emt 0:00:12]} h5 {[%emt 0:00:03]} 11. Bg5 {[%emt 0:00:07]} Be6 {[%emt 0:00:26]} 12. a3 {[%emt 0:00:05]} Be7 {[%emt 0:01:11]} 13. Rfd1 {[%emt 0:00:20]} h4 {[%emt 0:01:06]} 14. Ne4 {[%emt 0:01:46]} Bd5 {[%emt 0:00:34]} 15. Re1 {[%emt 0:00:04]} Rd8 {[%emt 0:02:22]} 16. Rac1 {[%emt 0:00:37]} b6 {[%emt 0:01:28]} 17. b4 {[%emt 0:02:39]} Rd7 {[%emt 0:02:07]} 18. Nfd2 {[%emt 0:03:37]} Rh5 {[%emt 0:01:30]} 19. Bf4 {[%emt 0:00:42]} Be6 {[%emt 0:00:02]} 20. Nf3 {[%emt 0:00:33]} Nd4 {[%emt 0:00:22]} 21. Nd6+ {[%emt 0:01:23]} cxd6 {[%emt 0:00:29]} 22. Nxd4 {[%emt 0:00:03]} dxe5 {[%emt 0:00:11]} 23. Nxe6 {[%emt 0:00:33]} fxe6 {[%emt 0:00:03]} 24. Bxe5 {[%emt 0:00:13]} Kf7 {[%emt 0:00:15]} 25. Re2 {[%emt 0:00:54]} Bf6 {[%emt 0:01:13]} 26. Bxf6 {[%emt 0:01:08]} gxf6 {[%emt 0:00:03]} 27. Rce1 {[%emt 0:00:03]} 1/2-1/2